fUSD/lending_fUSD_20240414
["ID","MTS","AMOUNT","RATE_DAILY","PERIOD"]
[322558596,1713057033630,-469.82778,0.000208,2]
[322558597,1713057033641,-33744.56247926,0.000208,2]
[322558600,1713057038351,-152.96337254,0.0002079,2]
[322558601,1713057038361,-24114.44150609,0.000208,2]
[322558602,1713057038371,-500.0,0.000208,2]
[322558603,1713057038381,-51256.7449,0.000208,2]
[322558604,1713057038391,-300.0,0.000208,2]
[322558605,1713057038400,-150.0,0.00020802,2]
[322558606,1713057038411,-150.0,0.00020802,2]
[322558607,1713057038421,-150.0,0.00020803,2]
[322558608,1713057038430,-150.0,0.00020805,2]
[322558609,1713057038439,-150.0,0.00020805,2]
[322558610,1713057038449,-300.0,0.00020806,2]
[322558611,1713057038458,-1500.0,0.00020807,2]
[322558612,1713057038468,-150.0,0.00020808,2]
[322558613,1713057038481,-150.0,0.0002081,2]
[322558614,1713057038491,-7389.25699227,0.00020811,2]
[322558615,1713057038501,-150.0,0.00020813,2]
[322558616,1713057038511,-150.0,0.00020814,2]
[322558617,1713057038520,-300.0,0.00020815,2]
[322558618,1713057038529,-150.0,0.00020816,2]
[322558619,1713057038538,-300.0,0.00020817,2]
[322558620,1713057038547,-300.0,0.00020818,2]
[322558621,1713057038556,-150.0,0.0002082,2]
[322558622,1713057038565,-150.0,0.00020824,2]
[322558623,1713057038574,-300.0,0.00020824,2]
[322558624,1713057038583,-150.0,0.00020827,2]
[322558625,1713057038592,-150.0,0.00020831,2]
[322558626,1713057038601,-150.0,0.00020832,2]
[322558627,1713057038611,-300.0,0.00020833,2]
[322558628,1713057038620,-7389.25699227,0.00020833,2]
[322558629,1713057038629,-150.0,0.00020836,2]
[322558630,1713057038638,-300.0,0.00020838,2]
[322558631,1713057038647,-300.0,0.0002084,2]
[322558632,1713057038657,-300.0,0.0002084,2]
[322558633,1713057038666,-1500.0,0.00020847,2]
[322558634,1713057038675,-150.0,0.00020847,2]
[322558635,1713057038685,-150.0,0.00020848,2]
[322558636,1713057038695,-1500.0,0.00020851,2]
[322558637,1713057038704,-150.0,0.00020854,2]
[322558638,1713057038713,-7389.25699227,0.00020856,2]
[322558639,1713057038723,-1500.0,0.00020856,2]
[322558640,1713057038737,-1500.0,0.00020858,2]
[322558641,1713057038747,-300.0,0.00020858,2]
[322558642,1713057038756,-150.0,0.00020858,2]
[322558643,1713057038766,-150.0,0.00020858,2]
[322558644,1713057038775,-150.0,0.00020861,2]
[322558645,1713057038785,-150.0,0.00020861,2]
[322558646,1713057038794,-150.0,0.00020862,2]
[322558648,1713057038804,-150.0,0.00020862,2]
[322558650,1713057038813,-300.0,0.00020866,2]
[322558652,1713057038823,-1500.0,0.00020867,2]
[322558654,1713057038833,-1500.0,0.00020867,2]
[322558656,1713057038842,-150.0,0.00020867,2]
[322558658,1713057038851,-1500.0,0.00020868,2]
[322558660,1713057038861,-150.0,0.0002087,2]
[322558662,1713057038870,-150.0,0.00020871,2]
[322558664,1713057038879,-150.0,0.00020871,2]
[322558666,1713057038889,-150.0,0.00020872,2]
[322558668,1713057038898,-150.0,0.00020872,2]
[322558670,1713057038908,-800.0,0.00020877,2]
[322558671,1713057038917,-7389.25699227,0.00020878,2]
[322558672,1713057038927,-1154.82225226,0.00020879,2]
[322558713,1713057039773,-345.17774774,0.00020879,2]
[322558715,1713057039784,-300.0,0.0002088,2]
[322558716,1713057039794,-1500.0,0.00020882,2]
[322558717,1713057039806,-160.06,0.00020884,2]
[322558719,1713057039816,-150.0,0.00020885,2]
[322558720,1713057039826,-150.0,0.00020886,2]
[322558721,1713057039837,-321.08269601,0.00020892,2]
[322558722,1713057039847,-150.0,0.00020894,2]
[322558723,1713057039857,-150.0,0.00020894,2]
[322558724,1713057039867,-150.0,0.00020896,2]
[322558725,1713057039876,-150.0,0.00020896,2]
[322558726,1713057039885,-1500.0,0.00020899,2]
[322558727,1713057039895,-8392.65076261,0.000209,2]
[322558728,1713057039905,-10000.0,0.000209,2]
[322558729,1713057039915,-53861.92030344,0.000209,2]
[322558730,1713057039925,-656477.944386,0.000209,2]
[322558731,1713057039935,-150.0,0.000209,2]
[322558732,1713057039944,-1000.0,0.000209,2]
[322558733,1713057039954,-7389.25699227,0.000209,2]
[322558734,1713057039964,-812.58069725,0.000209,2]
[322558735,1713057039973,-1437.9595129,0.000209,2]
[322558736,1713057039990,-7083.37010876,0.000209,3]
[322558737,1713057040000,-154.2523094,0.000209,2]
[322558738,1713057040009,-286.05183614,0.000209,2]
[322558739,1713057040019,-150.0,0.0002091,2]
[322558740,1713057040028,-300.0,0.00020911,2]
[322558741,1713057040038,-1500.0,0.00020912,2]
[322558742,1713057040047,-150.0,0.00020916,2]
[322558743,1713057040056,-150.0,0.00020918,2]
[322558744,1713057040066,-150.0,0.00020919,2]
[322558745,1713057040075,-150.0,0.0002092,2]
[322558746,1713057040085,-300.0,0.00020923,2]
[322558747,1713057040094,-150.0,0.00020924,2]
[322558748,1713057040103,-1500.0,0.00020925,2]
[322558749,1713057040113,-150.0,0.00020927,2]
[322558750,1713057040122,-150.0,0.00020929,2]
[322558751,1713057040131,-150.0,0.00020929,2]
[322558752,1713057040140,-300.0,0.0002093,2]
[322558753,1713057040150,-1500.0,0.0002093,2]
[322558754,1713057040160,-150.0,0.0002093,2]
[322558755,1713057040170,-300.0,0.00020932,2]
[322558756,1713057040180,-150.0,0.00020936,2]
[322558757,1713057040190,-1500.0,0.00020942,2]
[322558758,1713057040200,-300.0,0.00020946,2]
[322558759,1713057040210,-150.0,0.00020946,2]
[322558760,1713057040220,-150.0,0.00020949,2]
[322558761,1713057040237,-150.0,0.00020952,2]
[322558762,1713057040247,-150.0,0.00020956,2]
[322558763,1713057040257,-150.0,0.00020957,2]
[322558764,1713057040267,-150.0,0.00020957,2]
[322558765,1713057040278,-300.0,0.00020958,2]
[322558766,1713057040287,-150.0,0.00020958,2]
[322558767,1713057040296,-800.0,0.00020959,2]
[322558768,1713057040306,-800.0,0.00020959,2]
[322558769,1713057040316,-800.0,0.00020959,2]
[322558770,1713057040330,-150.0,0.0002096,2]
[322558771,1713057040339,-150.0,0.00020961,2]
[322558772,1713057040349,-150.0,0.00020965,2]
[322558774,1713057040360,-1442.28909905,0.00020968,2]
[322558776,1713057040370,-150.0,0.0002097,2]
[322558777,1713057040381,-160.06,0.0002097,2]
[322558778,1713057040391,-150.0,0.00020972,2]
[322558779,1713057040401,-300.00078255,0.00020974,2]
[322558780,1713057040411,-150.0,0.00020974,2]
[322558781,1713057040421,-300.0,0.00020977,2]
[322558782,1713057040431,-150.0,0.0002098,2]
[322558783,1713057040441,-150.0,0.00020981,2]
[322558784,1713057040451,-150.0,0.00020982,2]
[322558785,1713057040460,-300.0,0.00020982,2]
[322558786,1713057040470,-150.0,0.00020983,2]
[322558787,1713057040485,-150.0,0.00020983,2]
[322558788,1713057040495,-150.0,0.00020984,2]
[322558789,1713057040505,-300.0,0.00020984,2]
[322558790,1713057040514,-150.0,0.00020985,2]
[322558791,1713057040524,-150.0,0.00020986,2]
[322558792,1713057040533,-1000.0,0.00020989,2]
[322558793,1713057040543,-6188.8635874,0.0002099,2]
[322558794,1713057040552,-190.45760989,0.0002099,2]
[322558795,1713057040562,-200.0,0.0002099,2]
[322558796,1713057040572,-38755.48665666,0.0002099,2]
[322558797,1713057040582,-5465.4779388,0.00020991,2]
[322558798,1713057040592,-3785.4444507,0.00020991,2]
[322558799,1713057040602,-37256.1844473,0.00020991,2]
[322558800,1713057040611,-322.63777059,0.00020998,2]
[322558801,1713057040620,-361.37576456,0.00020998,2]
[322558802,1713057040630,-800.39510704,0.00020998,2]
[322558803,1713057040639,-1840.76884087,0.00020998,2]
[322558804,1713057040649,-1985.80686433,0.00020998,2]
[322558805,1713057040659,-539.61846108,0.00020998,2]
[322558806,1713057040668,-1298.76033688,0.00020998,2]
[322558807,1713057040677,-155.0,0.00020998,2]
[322558808,1713057040686,-190.04540674,0.00020998,2]
[322558809,1713057040695,-295.55148042,0.00020998,2]
[322558810,1713057040704,-156.86509409,0.00020998,2]
[322558811,1713057040714,-306.56774793,0.00020998,2]
[322558812,1713057040724,-222.36183567,0.00020998,2]
[322558813,1713057040737,-640.08300789,0.00020998,2]
[322558814,1713057040746,-296.89473455,0.00020998,2]
[322558815,1713057040755,-215.91200535,0.00020998,2]
[322558816,1713057040764,-1762.93005705,0.00020998,2]
[322558817,1713057040773,-164.29640163,0.00020998,2]
[322558818,1713057040782,-2016.20832057,0.00020999,2]
[322558819,1713057040791,-206.8601853,0.00020999,2]
[322558820,1713057040800,-5833.96155305,0.00020999,2]
[322558821,1713057040809,-4926.22908304,0.00020999,2]
[322558822,1713057040818,-2004.0,0.00021,2]
[322558823,1713057040828,-955893.95940347,0.00021,2]
[322558824,1713057040842,-1129312.03768247,0.00021,2]
[322558825,1713057040851,-155.0,0.00021,2]
[322558826,1713057040861,-1664247.95389203,0.00021,2]
[322558827,1713057040871,-1561.21,0.00021,2]
[322558828,1713057040880,-715.3230238,0.00021,2]
[322558829,1713057040889,-3309.76958647,0.00021,2]
[322558830,1713057040898,-1260.42,0.00021,2]
[322558831,1713057040909,-8361000.66241673,0.00021,2]
[322558832,1713057040920,-13141276.2216504,0.00021,2]
[322558833,1713057041805,-912.50554632,0.000209,2]
[322558834,1713057041881,-3644.43329378,0.000209,2]
[322558835,1713057041891,-705837.27577754,0.00021,2]
[322558836,1713057041902,-1126.22836092,0.00021,2]
[322558837,1713057041913,-723.6648614,0.00021,2]
[322558838,1713057041923,-1199.28386529,0.00021,2]
[322558870,1713057046533,-691.91999996,0.00020865,2]
[322558871,1713057046545,-1206.08000004,0.00020865,2]
[322558872,1713057046554,-914.22,0.00020899,2]
[322558873,1713057046568,-155.34336927,0.00020956,2]
[322558874,1713057046578,-3000.0,0.0002099,2]
[322558875,1713057046588,-206.8601853,0.00020999,2]
[322558876,1713057046597,-738.23529771,0.00020999,2]
[322558877,1713057046609,-454.85707702,0.00020999,2]
[322558878,1713057046621,-4640.86917832,0.00020999,2]
[322558879,1713057046630,-186.59873163,0.00020999,2]
[322558880,1713057046640,-504704.53209011,0.00021,2]
[322558881,1713057046660,-252.03088428,0.00021,2]
[322558882,1713057046672,-1055.04366762,0.00021,2]
[322558883,1713057046695,-487.6811331,0.00021,2]
[322558884,1713057177191,196.31,0.00019843,2]
[322558887,1713057255318,250.0,0.00019839,2]
[322558889,1713057265728,153.56,0.00019839,2]
[322558890,1713057314930,1158.13,0.00019801,2]
[322558891,1713057329055,1000.0,0.000198,2]
[322558893,1713057373832,476.57,0.00017897,2]
[322558898,1713057545723,535.87,0.00019765,2]
[322558899,1713057696095,156.44,0.00019926,2]
[322558900,1713057789859,1279.0,0.00029998,60]
[322558901,1713057797030,250.0,0.0001976,2]
[322558902,1713057881706,200.0,0.00019761,2]
[322558904,1713057961671,452.74,0.00017847,2]
[322558905,1713058054367,356.91,0.00019763,2]
[322558908,1713058141356,-452.74,0.00020111,2]
[322558909,1713058141389,-166.15964522,0.00020317,2]
[322558910,1713058141420,-519.00318571,0.00020417,2]
[322558918,1713058166236,-1070.54400053,0.00020299,2]
[322558920,1713058182242,156.44,0.00019914,2]
[322558922,1713058209001,30000.0,0.0003,30]
[322558942,1713058231574,-420.84478543,0.00020299,2]
[322558943,1713058231585,-497.80112752,0.00020417,2]
[322558944,1713058231594,-167.0,0.0002043,2]
[322558945,1713058231604,-1491.38878596,0.00020597,2]
[322558946,1713058231614,-255.7194,0.0002069,2]
[322558947,1713058231626,-4685.0929,0.0002069,2]
[322558948,1713058231635,-913.54,0.00020699,2]
[322558949,1713058231645,-500.0,0.000207,2]
[322558950,1713058231655,-1000.0,0.000207,2]
[322558951,1713058231664,-150.99,0.000207,2]
[322558952,1713058231674,-499.99,0.000207,2]
[322558953,1713058231684,-999.99,0.000207,2]
[322558954,1713058231696,-4339.06625651,0.000207,2]
[322558955,1713058231706,-2500.0,0.00020711,2]
[322558956,1713058231715,-4339.06625651,0.00020722,2]
[322558957,1713058231725,-37503.0,0.00020726,2]
[322558958,1713058231734,-150.0,0.00020726,2]
[322558959,1713058231743,-150.0,0.00020729,2]
[322558960,1713058231753,-150.0,0.00020729,2]
[322558961,1713058231762,-150.0,0.00020729,2]
[322558962,1713058231771,-150.0,0.00020737,2]
[322558963,1713058231781,-150.0,0.00020738,2]
[322558964,1713058231791,-150.0,0.00020741,2]
[322558965,1713058231800,-150.0,0.00020743,2]
[322558966,1713058231809,-150.0,0.00020744,2]
[322558967,1713058231818,-4339.06625651,0.00020744,2]
[322558968,1713058231828,-150.0,0.00020746,2]
[322558969,1713058231838,-150.0,0.00020747,2]
[322558970,1713058231847,-150.0,0.00020753,2]
[322558971,1713058231856,-150.0,0.00020754,2]
[322558972,1713058231865,-150.0,0.00020755,2]
[322558973,1713058231878,-150.0,0.00020757,2]
[322558974,1713058231887,-4339.06625651,0.00020767,2]
[322558975,1713058231897,-150.0,0.00020767,2]
[322558976,1713058231906,-150.0,0.00020772,2]
[322558977,1713058231916,-150.0,0.00020777,2]
[322558978,1713058231925,-150.0,0.00020779,2]
[322558979,1713058231935,-150.0,0.00020782,2]
[322558980,1713058231944,-150.0,0.00020783,2]
[322558981,1713058231953,-150.0,0.00020786,2]
[322558982,1713058231962,-150.0,0.00020788,2]
[322558983,1713058231972,-4339.06625651,0.00020789,2]
[322558984,1713058231981,-150.0,0.00020789,2]
[322558985,1713058231990,-1000.0,0.00020789,2]
[322558986,1713058232002,-1570.61673,0.0002079,2]
[322558987,1713058232013,-46272.34068226,0.0002079,2]
[322558988,1713058232255,-676.196,0.0002079,2]
[322558989,1713058232324,-298.723996,0.0002079,2]
[322558990,1713058232338,-1104.124,0.0002079,2]
[322558991,1713058232349,-369.95948262,0.0002079,2]
[322558992,1713058232362,-467.5,0.0002079,2]
[322558993,1713058232409,-600.0,0.0002079,2]
[322558994,1713058232421,-1000.0,0.0002079,2]
[322559014,1713058237591,-5536.37483912,0.0002079,2]
[322559016,1713058237601,-150.0,0.00020791,2]
[322559018,1713058237610,-300.0,0.00020795,2]
[322559020,1713058237620,-150.0,0.00020796,2]
[322559022,1713058237632,-150.0,0.00020797,2]
[322559024,1713058237642,-100000.0,0.000208,2]
[322559026,1713058237651,-3367.2925,0.000208,2]
[322559027,1713058237661,-168.55717623,0.000208,2]
[322559028,1713058237671,-150.0,0.00020802,2]
[322559029,1713058237680,-300.0,0.00020808,2]
[322559030,1713058237695,-4339.06625651,0.00020811,2]
[322559031,1713058237705,-150.0,0.00020813,2]
[322559033,1713058237714,-300.0,0.00020814,2]
[322559035,1713058237723,-150.0,0.00020815,2]
[322559037,1713058237734,-150.0,0.00020819,2]
[322559038,1713058237743,-150.0,0.00020821,2]
[322559040,1713058237752,-396.734056,0.00020822,2]
[322559042,1713058237762,-200.0,0.00020822,2]
[322559044,1713058237771,-150.0,0.00020823,2]
[322559046,1713058237781,-164.16,0.00020823,2]
[322559047,1713058237790,-150.0,0.00020826,2]
[322559048,1713058237799,-150.0,0.00020827,2]
[322559049,1713058237808,-150.0,0.00020827,2]
[322559050,1713058237818,-1000.0,0.00020832,2]
[322559051,1713058237827,-500.0,0.00020832,2]
[322559052,1713058237837,-150.0,0.00020833,2]
[322559053,1713058237846,-4339.06625651,0.00020833,2]
[322559054,1713058237855,-150.0,0.00020834,2]
[322559055,1713058237865,-150.0,0.00020838,2]
[322559056,1713058237874,-150.0,0.00020841,2]
[322559057,1713058237888,-150.0,0.00020841,2]
[322559058,1713058237898,-150.0,0.00020842,2]
[322559059,1713058237907,-150.0,0.00020845,2]
[322559060,1713058237916,-150.0,0.00020849,2]
[322559061,1713058237925,-150.0,0.00020851,2]
[322559062,1713058237946,-150.0,0.00020853,2]
[322559063,1713058237958,-150.0,0.00020854,2]
[322559064,1713058237968,-4339.06625651,0.00020856,2]
[322559065,1713058237978,-150.0,0.00020856,2]
[322559066,1713058237987,-150.0,0.00020863,2]
[322559067,1713058237997,-150.0,0.00020864,2]
[322559068,1713058238007,-150.0,0.00020872,2]
[322559069,1713058238017,-150.0,0.00020873,2]
[322559070,1713058238026,-150.0,0.00020874,2]
[322559071,1713058238036,-4339.06625651,0.00020878,2]
[322559073,1713058238046,-150.0,0.00020883,2]
[322559075,1713058238056,-150.0,0.00020886,2]
[322559077,1713058238067,-150.0,0.0002089,2]
[322559079,1713058238077,-28043.59712062,0.0002089,2]
[322559081,1713058238088,-164.16,0.0002089,2]
[322559083,1713058238097,-150.0,0.00020892,2]
[322559085,1713058238107,-150.0,0.00020893,2]
[322559087,1713058238116,-3363.15956976,0.00020899,2]
[322559089,1713058238126,-1009.00876744,0.00020899,2]
[322559091,1713058238142,-1000.0,0.000209,2]
[322559094,1713058238151,-245000.0,0.000209,2]
[322559096,1713058238161,-10000.0,0.000209,2]
[322559098,1713058238170,-2660.5966,0.000209,2]
[322559100,1713058238180,-92592.69541281,0.000209,2]
[322559102,1713058238189,-153.44817223,0.000209,2]
[322559104,1713058238199,-150.0,0.000209,2]
[322559106,1713058238210,-4339.06625651,0.000209,2]
[322559108,1713058238220,-190.70122408,0.000209,2]
[322559110,1713058238230,-347.43946486,0.000209,2]
[322559112,1713058238240,-178.10981068,0.000209,2]
[322559114,1713058238250,-150.0,0.00020902,2]
[322559116,1713058238260,-150.0,0.00020905,2]
[322559118,1713058238270,-150.0,0.00020911,2]
[322559120,1713058238278,-150.0,0.00020913,2]
[322559122,1713058238288,-150.0,0.00020919,2]
[322559124,1713058238298,-150.0,0.00020919,2]
[322559126,1713058238307,-150.0,0.00020921,2]
[322559128,1713058238319,-150.0,0.00020921,2]
[322559130,1713058238329,-150.0,0.00020923,2]
[322559132,1713058238338,-150.0,0.00020924,2]
[322559134,1713058238348,-150.0,0.00020925,2]
[322559136,1713058238358,-150.0,0.00020926,2]
[322559138,1713058238368,-150.0,0.00020926,2]
[322559140,1713058238377,-150.0,0.00020928,2]
[322559142,1713058238397,-150.0,0.0002093,2]
[322559144,1713058238407,-150.0,0.00020934,2]
[322559146,1713058238417,-150.0,0.00020936,2]
[322559148,1713058238427,-150.0,0.00020943,2]
[322559150,1713058238437,-150.0,0.00020943,2]
[322559153,1713058238447,-150.0,0.00020943,2]
[322559155,1713058238456,-150.0,0.00020945,2]
[322559157,1713058238466,-150.0,0.00020945,2]
[322559158,1713058238475,-150.0,0.00020948,2]
[322559161,1713058238486,-150.0,0.00020948,2]
[322559163,1713058238495,-150.0,0.0002095,2]
[322559165,1713058238504,-150.0,0.0002095,2]
[322559167,1713058238515,-150.0,0.00020951,2]
[322559168,1713058238524,-156.44,0.00020951,2]
[322559170,1713058238534,-150.0,0.00020956,2]
[322559172,1713058238544,-150.0,0.00020958,2]
[322559175,1713058238554,-150.0,0.00020962,2]
[322559177,1713058238563,-150.0,0.00020966,2]
[322559179,1713058238573,-150.0,0.00020969,2]
[322559181,1713058238582,-150.0,0.00020978,2]
[322559183,1713058238592,-164.16,0.00020989,2]
[322559185,1713058238601,-150.0,0.00020989,2]
[322559187,1713058238611,-150.0,0.00020989,2]
[322559189,1713058238621,-150.0,0.0002099,2]
[322559191,1713058238638,-164.16,0.0002099,2]
[322559193,1713058238648,-164.16,0.0002099,2]
[322559195,1713058238658,-164.16,0.0002099,2]
[322559197,1713058238668,-164.16,0.0002099,2]
[322559199,1713058238677,-164.16,0.0002099,2]
[322559201,1713058238690,-164.16,0.0002099,2]
[322559203,1713058238700,-13313.462771,0.00020991,2]
[322559205,1713058238711,-150.0,0.00020993,2]
[322559207,1713058238720,-150.0,0.00020994,2]
[322559209,1713058238731,-150.0,0.00020996,2]
[322559211,1713058238741,-936.05797919,0.00020998,2]
[322559213,1713058238751,-807.30845249,0.00020998,2]
[322559215,1713058238760,-150.0,0.00020998,2]
[322559217,1713058238770,-1655.32783324,0.00020999,2]
[322559219,1713058238781,-206.8601853,0.00020999,2]
[322559221,1713058238791,-313.28763206,0.00020999,2]
[322559223,1713058238801,-540.42938532,0.00020999,2]
[322559225,1713058238811,-5833.96155305,0.00020999,2]
[322559228,1713058238821,-708.67268561,0.00020999,2]
[322559230,1713058238834,-262.92582661,0.00020999,2]
[322559232,1713058238845,-1966.67663912,0.00020999,2]
[322559234,1713058238855,-150.0,0.00020999,2]
[322559236,1713058238865,-1723.0,0.00021,2]
[322559238,1713058238875,-205321.38244909,0.00021,2]
[322559249,1713058239852,-1454659.89099125,0.00021,2]
[322559251,1713058240038,-3956.80971926,0.00021,2]
[322559252,1713058240052,-11168555.7749114,0.00021,2]
[322559253,1713058240065,-10733735.31552862,0.00021,2]
[322559254,1713058240075,-1429.999999,0.00021,2]
[322559255,1713058240088,-456839.41787812,0.00021,2]
[322559256,1713058240098,-369.0,0.00021,2]
[322559257,1713058240108,-155.0,0.00021,2]
[322559258,1713058240118,-1664247.95389203,0.00021,2]
[322559259,1713058240129,-715.3230238,0.00021,2]
[322559260,1713058240143,-1561.21,0.00021,2]
[322559261,1713058240154,-3309.76958647,0.00021,2]
[322559262,1713058240165,-1260.42,0.00021,2]
[322559263,1713058240176,-200.0,0.00021,2]
[322559264,1713058240185,-54956.8251805,0.00021118,2]
[322559265,1713058240196,-300.0,0.00021133,2]
[322559266,1713058240207,-200.0,0.0002121,2]
[322559267,1713058240219,-167.0,0.0002122,2]
[322559268,1713058240230,-1570.61674,0.0002125,2]
[322559269,1713058240242,-1491.38878596,0.00021253,2]
[322559270,1713058240253,-3334.145563,0.00021288,2]
[322559271,1713058240264,-396.734056,0.00021644,2]
[322559272,1713058240276,-3258.0,0.000218,2]
[322559273,1713058240287,-1224.0,0.000218,2]
[322559274,1713058240299,-279.02,0.0002187,2]
[322559275,1713058240310,-1570.61673,0.0002188,2]
[322559276,1713058240322,-167.0,0.00021898,2]
[322559277,1713058240333,-190.79,0.00021918,2]
[322559278,1713058240343,-250.0,0.00021918,2]
[322559279,1713058240355,-250.0,0.00021918,2]
[322559280,1713058240365,-800.0,0.00021973,2]
[322559281,1713058240375,-952.62505259,0.00022,2]
[322559282,1713058240386,-784.07954146,0.00022,2]
[322559283,1713058240396,-282.30783668,0.00022,2]
[322559284,1713058240406,-7724.33844606,0.00022,2]
[322559285,1713058240416,-238.77975992,0.00022,2]
[322559286,1713058240426,-1054.68763452,0.00022,2]
[322559287,1713058240436,-343.66500353,0.00022,2]
[322559288,1713058240445,-343.66500353,0.00022,2]
[322559289,1713058240456,-343.66500353,0.00022,2]
[322559290,1713058240466,-343.66500353,0.00022,2]
[322559291,1713058240476,-343.66500353,0.00022,2]
[322559292,1713058240486,-343.66500353,0.00022,2]
[322559293,1713058240496,-343.66500353,0.00022,2]
[322559294,1713058240506,-343.66500353,0.00022,2]
[322559295,1713058240515,-343.66500353,0.00022,2]
[322559296,1713058240525,-343.66500353,0.00022,2]
[322559297,1713058240535,-343.66500353,0.00022,2]
[322559298,1713058240544,-343.66500353,0.00022,2]
[322559299,1713058240554,-343.66500353,0.00022,2]
[322559300,1713058240564,-343.66500353,0.00022,2]
[322559301,1713058240573,-343.66500353,0.00022,2]
[322559302,1713058240583,-343.66500353,0.00022,2]
[322559303,1713058240592,-343.66500353,0.00022,2]
[322559304,1713058240602,-343.66500353,0.00022,2]
[322559305,1713058240612,-343.66500353,0.00022,2]
[322559306,1713058240621,-343.66500353,0.00022,2]
[322559307,1713058240633,-343.66500353,0.00022,2]
[322559308,1713058240646,-343.66500353,0.00022,2]
[322559309,1713058240655,-343.66500353,0.00022,2]
[322559310,1713058240666,-343.66500353,0.00022,2]
[322559311,1713058240675,-343.66500353,0.00022,2]
[322559312,1713058240686,-343.66500353,0.00022,2]
[322559313,1713058240696,-343.66500353,0.00022,2]
[322559314,1713058240709,-343.66500353,0.00022,2]
[322559315,1713058240719,-343.66500353,0.00022,2]
[322559316,1713058240729,-343.66500353,0.00022,2]
[322559317,1713058240738,-343.66500353,0.00022,2]
[322559318,1713058240750,-343.66500353,0.00022,2]
[322559319,1713058240760,-343.66500353,0.00022,2]
[322559320,1713058240770,-343.66500353,0.00022,2]
[322559321,1713058240781,-343.66500353,0.00022,2]
[322559322,1713058240791,-343.66500353,0.00022,2]
[322559323,1713058240801,-343.66500353,0.00022,2]
[322559324,1713058240811,-343.66500353,0.00022,2]
[322559325,1713058240821,-343.66500353,0.00022,2]
[322559326,1713058240832,-343.66500353,0.00022,2]
[322559327,1713058240842,-343.66500353,0.00022,2]
[322559328,1713058240851,-343.66500353,0.00022,2]
[322559329,1713058240861,-343.66500353,0.00022,2]
[322559330,1713058240871,-343.66500353,0.00022,2]
[322559331,1713058240883,-343.66500353,0.00022,2]
[322559332,1713058240893,-343.66500353,0.00022,2]
[322559333,1713058240912,-343.66500353,0.00022,2]
[322559334,1713058240923,-343.66500353,0.00022,2]
[322559335,1713058240932,-343.66500353,0.00022,2]
[322559336,1713058240942,-343.66500353,0.00022,2]
[322559337,1713058240952,-343.66500353,0.00022,2]
[322559338,1713058240961,-343.66500353,0.00022,2]
[322559339,1713058240971,-343.66500353,0.00022,2]
[322559340,1713058240981,-343.66500353,0.00022,2]
[322559341,1713058240991,-343.66500353,0.00022,2]
[322559342,1713058241001,-343.66500353,0.00022,2]
[322559343,1713058241011,-343.66500353,0.00022,2]
[322559344,1713058241020,-343.66500353,0.00022,2]
[322559345,1713058241030,-343.66500353,0.00022,2]
[322559346,1713058241040,-343.66500353,0.00022,2]
[322559347,1713058241050,-343.66500353,0.00022,2]
[322559348,1713058241060,-343.66500353,0.00022,2]
[322559349,1713058241069,-343.66500353,0.00022,2]
[322559350,1713058241079,-343.66500353,0.00022,2]
[322559351,1713058241089,-343.66500353,0.00022,2]